bitfinex/quotes_ETHUSD_20251215
["timestamp","ask_amount","ask_price","bid_price","bid_amount"]
[1765813041112,0.98597929,2999.6,2998.0,0.1637]
[1765813041408,1.47877929,2999.6,2998.0,0.1637]
[1765813041702,0.4928,2999.3,2998.1,3.33535863]
[1765813041889,0.58047529,2999.1,2998.2,3.33529065]
[1765813042302,0.555,2999.0,2998.3,0.002]
[1765813042920,1.0478,2999.0,2998.3,0.002]
[1765813043380,0.4928,2998.9,2998.3,0.002]
[1765813043992,3.82737505,2998.9,2998.3,0.002]
[1765813044177,3.33366201,2999.8,2998.3,0.002]
[1765813044178,0.555,2998.8,2998.3,0.002]
[1765813044402,0.555,2998.7,2998.3,0.002]
[1765813044605,0.555,2998.6,2998.3,0.002]
[1765813044808,0.555,2998.5,2998.3,0.002]
[1765813045818,3.33511205,2998.4,2998.3,0.002]
[1765813046111,0.1929,2998.7,2998.3,0.002]
[1765813046437,0.555,2998.4,2998.3,0.002]
[1765813046782,0.58047529,2998.8,2998.3,0.002]
[1765813046986,0.555,2998.7,2998.3,0.002]
[1765813047419,1.0478,2998.7,2998.3,0.002]
[1765813047624,0.555,2998.7,2998.3,0.002]
[1765813047829,6.66977922,2998.6,2998.3,0.002]
[1765813048012,0.58047529,2998.5,2998.3,0.002]
[1765813048312,0.555,2998.4,2998.3,0.002]
[1765813048733,1.0478,2998.4,2998.3,0.002]
[1765813048885,0.555,2998.4,2998.3,0.002]
[1765813049086,1.0478,2998.4,2998.3,0.002]
[1765813049739,0.555,2998.4,2998.3,0.002]
[1765813050087,3.33500336,2998.5,2998.3,0.002]
[1765813050293,3.52750242,2998.9,2998.3,0.002]
[1765813050502,0.555,2998.8,2998.3,0.002]
[1765813050896,0.001,2999.7,2998.4,0.3127]
[1765813051126,0.555,2999.6,2998.5,0.03335]
[1765813051292,0.555,2999.6,2998.4,0.3127]
[1765813051810,0.555,2999.6,2998.5,0.04]
[1765813052021,0.001,2999.7,2998.9,0.98597929]
[1765813052232,0.001,2999.7,2999.1,0.405504]
[1765813052626,0.001,2999.7,2999.3,0.58047529]
[1765813052934,0.001,2999.7,2999.3,5.46841]
[1765813053233,0.001,2999.7,2999.4,0.3127]
[1765813053807,0.001,2999.7,2999.3,0.04]
[1765813054102,0.1906,2999.6,2999.0,0.04]
[1765813054503,0.001,2999.7,2999.0,0.04]
[1765813054810,0.555,2999.6,2999.0,3.71188042]
[1765813055115,0.555,2999.6,2999.1,3.33432895]
[1765813055432,0.555,2999.6,2999.2,3.33422196]
[1765813055626,0.555,2999.6,2998.4,0.89317529]
[1765813055943,0.001,2999.7,2998.6,6.66977922]
[1765813056126,0.555,2999.6,2998.7,1.00447409]
[1765813056438,0.555,2999.6,2998.8,0.03334667]
[1765813056643,0.555,2999.6,2998.8,0.3127]
[1765813058037,3.33388898,2999.5,2998.6,3.33488961]
[1765813058212,3.33388898,2999.5,2998.5,0.04]
[1765813058213,6.66777796,2999.5,2998.9,0.04]
[1765813058538,0.1929,3001.2,2999.1,0.58047529]
[1765813058840,0.556,3000.9,2999.2,1.42174587]
[1765813059144,0.554,3000.8,2999.4,0.405504]
[1765813059339,0.001,3000.9,2999.4,0.445504]
[1765813059532,0.554,3000.7,2999.6,0.03987572]
[1765813059758,0.554,3000.7,2999.5,0.3117]
[1765813059934,0.554,3000.7,2999.6,6.66755566]
[1765813060136,0.554,3000.7,2999.7,0.69792557]
[1765813060439,3.88657038,3000.7,2999.7,0.73792557]
[1765813060762,0.554,3000.7,2999.7,1.04962557]
[1765813060937,0.4595,3000.6,2999.7,0.04]
[1765813061333,0.4595,3000.6,2998.8,3.3346013]
[1765813061334,1.03997529,3000.6,2998.8,3.3346013]
[1765813061758,0.4595,3000.5,2998.9,3.33451231]
[1765813062054,0.4595,3000.5,2998.5,3.33491901]
[1765813062055,0.58047529,3000.3,2998.5,3.33491901]
[1765813062223,9.99866682,3000.4,2998.5,3.69978091]
[1765813062429,1.03997529,3000.3,2998.6,0.3117]
[1765813062852,0.58047529,3000.3,2998.6,0.3117]
[1765813063059,0.4595,3000.2,2998.5,3.69978091]
[1765813063267,0.554,3000.1,2998.6,0.3117]
[1765813063429,0.554,3000.1,2998.7,0.73464817]
[1765813063829,0.554,3000.1,2999.0,0.002]
[1765813064037,3.33333333,3000.0,2999.1,3.33433363]
[1765813064356,0.58047529,2999.9,2999.0,0.002]
[1765813064567,0.1906,2999.1,2999.0,0.002]
[1765813064878,0.864204,2998.8,2997.9,0.002]
[1765813065058,0.1906,2998.4,2997.9,0.002]
[1765813065361,0.554,2998.3,2997.9,0.002]
[1765813065659,0.554,2998.3,2996.7,0.002]
[1765813065660,19.323364,2998.0,2996.7,0.002]
[1765813065960,0.58047529,2998.0,2996.7,0.002]
[1765813066274,0.58047529,2997.8,2996.7,0.002]
[1765813066444,1.0135,2997.7,2996.7,0.002]
[1765813066844,0.4595,2997.6,2996.7,0.002]
[1765813067745,0.554,2997.6,2996.8,0.3177]
[1765813068162,0.554,2997.6,2996.7,0.002]
[1765813068163,0.554,2997.6,2997.1,0.3197]
[1765813068374,0.58047529,2998.7,2997.1,1.01902627]
[1765813068375,3.33479793,2998.7,2997.1,1.01902627]
[1765813068677,1.0135,2998.6,2997.2,0.3177]
[1765813068976,1.59397529,2998.6,2997.1,0.70132627]
[1765813069285,0.58047529,2998.4,2997.1,0.002]
[1765813069669,0.4595,2998.3,2997.1,0.002]
[1765813070061,3.33533453,2998.2,2997.1,0.002]
[1765813070259,0.58047529,2998.1,2997.1,0.002]
[1765813070567,0.554,2998.0,2997.1,0.002]
[1765813071888,0.554,2998.0,2997.1,0.3197]
[1765813072087,0.554,2998.0,2997.2,3.33644735]
[1765813072392,0.554,2998.0,2997.9,0.1717]
[1765813072767,0.554,2998.0,2997.3,0.68331473]
[1765813072958,0.554,2998.0,2997.6,0.1717]
[1765813073305,44.37518941,3031.9,2997.6,0.1717]
[1765813073306,0.4595,2999.5,2997.6,0.1717]
[1765813073458,0.001,2999.6,2998.0,0.405504]
[1765813073660,0.001,2999.6,2998.4,7.04257155]
[1765813073861,0.001,2999.6,2998.4,0.3177]
[1765813074100,0.001,2999.6,2998.7,0.58047529]
[1765813074561,0.001,2999.6,2998.7,0.93817529]
[1765813074756,0.001,2999.6,2998.7,0.3577]
[1765813074962,0.6511,2999.6,2998.7,0.04]
[1765813075168,0.405504,2999.4,2997.7,3.33578861]
[1765813075461,0.58047529,2999.2,2997.6,0.1717]
[1765813075770,0.554,2999.1,2997.6,3.50762548]
[1765813076080,10.00333443,2999.0,2997.6,0.1717]
[1765813076281,0.4595,2998.9,2997.6,3.50768403]
[1765813076464,0.4595,2998.9,2997.6,4.19205315]
[1765813076986,0.4595,2998.9,2997.6,4.02035315]
[1765813077189,0.4595,2998.9,2997.6,6.84368616]
[1765813077391,3.88837815,2999.1,2997.7,0.0333589]
[1765813077693,7.6822563,2999.1,2997.6,6.84368616]
[1765813077858,0.4595,2999.0,2997.6,6.84368616]
[1765813078402,6.669112,2998.9,2997.5,0.3177]
[1765813078595,0.98597929,2998.8,2997.6,0.04]
[1765813078892,0.405504,2998.6,2997.5,0.3177]
[1765813079068,0.405504,2998.4,2997.5,0.3177]
[1765813079264,0.405504,2998.2,2997.5,0.3177]
[1765813079581,0.405504,2998.2,2997.1,0.002]
[1765813079785,1.03997529,2998.2,2997.1,0.002]
[1765813079982,0.4595,2998.2,2997.1,0.002]
[1765813080183,0.4595,2998.2,2997.1,3.3385374]
[1765813080386,3.79488309,2998.2,2997.1,0.33605374]
[1765813080577,0.98597929,2998.1,2997.1,0.002]
[1765813080781,1.03997529,2998.1,2997.1,0.002]
[1765813080979,0.7446,2998.5,2997.2,0.3177]
[1765813081305,0.7446,2998.5,2997.1,0.002]
[1765813081306,21.512352,2998.1,2997.1,0.002]
[1765813081470,0.1906,2997.2,2997.1,0.002]
[1765813081668,0.554,2997.2,2997.1,0.002]
[1765813082596,0.554,2997.2,2997.1,0.3197]
[1765813082791,0.001,2998.9,2997.1,0.35306558]
[1765813083095,0.58047529,2998.7,2997.1,0.3197]
[1765813083297,3.8886672,2998.8,2997.1,0.35306558]
[1765813083511,0.554,2998.8,2997.2,0.03987572]
[1765813083710,0.554,2998.8,2997.2,0.58047529]
[1765813083875,0.554,2998.8,2997.3,1.11287626]
[1765813084275,0.554,2998.8,2997.4,0.3177]
[1765813084519,0.554,2998.8,2997.1,0.002]
[1765813084520,0.98597929,2998.5,2997.1,0.002]
[1765813084795,0.405504,2998.3,2997.1,0.002]
[1765813085097,0.405504,2998.1,2997.1,0.002]
[1765813085597,0.405504,2998.1,2996.7,0.002]
[1765813085598,0.405504,2997.4,2996.7,0.002]
[1765813085768,1.02585501,2997.0,2996.7,0.002]
[1765813085966,1.03,2996.9,2996.7,0.002]
[1765813086406,0.476,2996.8,2996.7,0.002]
[1765813086608,4.39336797,2996.8,2996.7,0.002]
[1765813087368,4.79887197,2996.8,2996.7,0.002]
[1765813087574,4.83874769,2996.8,2996.7,0.002]
[1765813087767,14.57236669,2996.8,2996.7,0.002]
[1765813088007,4.39336797,2996.8,2996.7,0.002]
[1765813088480,4.39256797,2996.8,2996.7,0.002]
[1765813089406,30.98597929,2996.7,2996.0,0.002]
[1765813089575,0.1834,2996.1,2996.0,0.002]
[1765813089778,0.7374,2996.1,2996.0,0.002]
[1765813090711,0.554,2996.1,2996.0,0.002]
[1765813091407,4.3676723,2996.1,2996.0,0.002]
[1765813091794,0.1834,2996.4,2996.0,0.002]
[1765813091997,0.554,2996.3,2996.0,0.002]
[1765813092795,0.554,2996.3,2996.0,0.3265]
[1765813094114,3.37526595,2998.2,2996.0,0.3265]
[1765813094115,0.554,2996.8,2996.0,0.3265]
[1765813094488,0.1834,2997.8,2996.1,18.5503892]
[1765813094687,0.554,2997.7,2996.2,2.46816421]
[1765813094889,0.554,2997.7,2996.2,2.79266421]
[1765813095211,0.554,2997.7,2997.6,0.1717]
[1765813095615,0.001,2998.0,2997.6,0.4962]
[1765813096103,0.001,2998.0,2997.7,0.3245]
[1765813096292,0.001,2998.9,2997.7,0.3245]
[1765813096495,0.554,2998.8,2997.8,6.67155914]
[1765813096710,0.554,2998.8,2997.8,10.72411462]
[1765813097012,0.001,2998.9,2997.9,0.3235]
[1765813097308,0.001,2998.9,2997.9,0.90397529]
[1765813097681,0.001,2998.9,2998.0,0.3235]
[1765813098484,0.476,2998.8,2997.8,3.33577957]
[1765813098687,0.405504,2998.7,2997.3,0.1707]
[1765813098880,0.405504,2998.7,2997.6,3.33597406]
[1765813099081,0.405504,2998.5,2997.3,0.1707]
[1765813099305,0.554,2998.4,2997.2,3.33636694]
[1765813099614,0.476,2998.3,2997.3,3.33633239]
[1765813099818,0.476,2998.3,2996.8,0.3235]
[1765813100178,0.476,2998.3,2996.9,3.33671192]
[1765813100179,9.93528429,2998.1,2996.9,3.33671192]
[1765813100384,0.476,2998.3,2996.8,3.33682506]
[1765813100385,0.476,2998.0,2996.8,3.33682506]
[1765813100584,6.67155914,2997.8,2996.4,6.67467626]
[1765813100785,0.553,2997.7,2996.4,6.67467626]
[1765813100992,1.029,2997.7,2996.5,0.79023503]
[1765813101528,0.476,2997.6,2996.4,6.67467626]
[1765813102246,0.405504,2997.3,2996.0,0.002]
[1765813102540,0.405504,2997.3,2996.5,0.002]
[1765813102697,7.3322947,2997.2,2996.5,0.002]
[1765813102901,0.1834,2997.2,2996.5,0.002]
[1765813103100,0.1834,2997.5,2996.5,0.002]
[1765813103305,0.553,2997.1,2996.5,0.002]
[1765813103927,0.476,2997.0,2996.5,0.002]
[1765813104236,0.553,2997.1,2996.5,0.002]
[1765813104401,0.476,2997.0,2996.5,0.002]
[1765813104726,3.33678134,2996.9,2996.5,0.002]
[1765813104927,0.476,2996.9,2996.5,0.002]
[1765813105314,0.51587572,2997.4,2996.5,0.002]
[1765813105624,0.553,2997.3,2996.5,0.002]
[1765813106603,0.553,2997.3,2996.5,0.3255]
[1765813106800,0.553,2997.3,2996.6,3.33711539]
[1765813107015,0.553,2997.3,2996.6,7.00814232]
[1765813107542,0.001,2997.7,2996.7,0.3235]
[1765813108531,0.001,2997.7,2997.6,0.1707]
[1765813108714,0.553,2998.8,2997.6,0.1707]
[1765813108914,0.6604,2999.6,2997.8,0.58047529]
[1765813109122,0.6604,2999.6,2998.0,0.58047529]
[1765813109123,0.001,2999.6,2998.0,0.58047529]
[1765813109292,0.553,2999.5,2998.2,0.58047529]
[1765813109494,0.553,2999.5,2998.3,0.3225]
[1765813109688,0.001,2999.6,2998.3,0.3225]
[1765813110326,0.001,2999.6,2998.8,0.58047529]
[1765813110621,0.001,2999.6,2998.8,0.90297529]
[1765813110821,0.001,2999.6,2998.8,5.03309875]
[1765813111032,0.001,2999.6,2998.8,4.71059875]
[1765813111235,0.1933,2999.6,2998.3,0.3225]
[1765813111426,0.5532,2998.9,2998.8,3.3346672]
[1765813111803,0.5532,2998.9,2998.1,0.3225]
[1765813112300,0.5532,2998.9,2997.4,10.38777937]
[1765813112301,0.5532,2998.9,2998.5,3.33491628]
[1765813112502,0.5532,2998.9,2997.6,0.1707]
[1765813112503,0.001,2998.0,2997.6,0.1707]
[1765813112699,0.001,2998.0,2997.3,3.50597246]
[1765813112921,0.001,2998.0,2997.5,3.33611342]
[1765813113321,0.001,2998.0,2997.5,6.67222684]
[1765813113522,0.001,2998.0,2997.5,3.33611342]
[1765813113721,0.001,2998.0,2997.6,0.3225]
[1765813114912,0.4732,2998.0,2997.6,3.3359147]
[1765813115117,0.553,2997.9,2997.6,3.3359147]
[1765813115337,0.001,2998.0,2997.6,6.67191683]
[1765813115525,0.001,2998.0,2997.6,7.67272373]
[1765813115839,0.001,2998.0,2997.6,3.3359147]
[1765813116041,0.001,2998.0,2997.6,3.33598773]
[1765813116230,0.001,2998.0,2997.7,0.3225]
[1765813116946,0.001,2998.0,2997.8,3.33577957]
[1765813117133,0.001,2998.0,2997.9,0.3225]
[1765813117441,0.001,2998.0,2997.9,1.02190626]
[1765813117847,0.001,2998.0,2997.9,1.60238155]
[1765813118341,0.001,2998.0,2997.9,16.47955427]
[1765813118546,0.001,2998.0,2997.9,2.15538155]
[1765813118916,0.001,2998.0,2997.9,4.93804985]
[1765813119316,0.001,2998.0,2997.9,10.81474318]
[1765813119523,0.001,2998.0,2997.9,4.35757456]
[1765813119922,0.001,2998.0,2997.9,4.39757456]
[1765813120123,0.001,2998.0,2997.9,4.35757456]
[1765813121123,0.001,2998.0,2997.9,4.39757456]
[1765813121447,0.001,2998.0,2997.9,5.01792557]
[1765813121614,0.001,2998.0,2997.9,18.43612357]
[1765813121819,0.001,2999.2,2998.2,0.58047529]
[1765813122045,0.001,2999.2,2998.4,0.58047529]
[1765813122231,0.001,2999.2,2998.5,0.64571686]
[1765813122437,0.001,2999.2,2998.6,0.3215]
[1765813122754,0.001,2999.2,2998.7,0.03334778]
[1765813122936,0.001,2999.2,2998.8,3.3346672]
[1765813123145,0.001,2999.2,2998.8,3.6561672]
[1765813123358,0.001,2999.2,2998.8,4.35526159]
[1765813124529,0.001,2999.2,2998.8,4.93573688]
[1765813126457,0.001,2999.6,2999.2,0.58047529]
[1765813126656,0.001,2999.6,2999.3,0.03334111]
[1765813126973,0.001,2999.6,2999.5,3.33388898]
[1765813127141,0.001,3000.4,3000.0,6.76537554]
[1765813127328,0.001,3000.4,3000.3,0.1519]
[1765813127727,0.001,3000.4,2999.5,13.66894482]
[1765813127728,0.001,3000.4,2999.8,0.1519]
[1765813127932,0.001,3000.4,2999.5,6.66777796]
[1765813128151,0.001,3000.1,2999.6,0.3215]
[1765813128364,0.001,3000.1,2999.7,1.03231669]
[1765813128736,0.001,3000.1,2999.8,0.3215]
[1765813129161,0.001,3000.1,2999.9,3.33344444]
[1765813129365,0.001,3000.1,2999.1,0.1519]
[1765813129565,0.4732,3000.1,2999.3,3.3340711]
[1765813129771,0.4732,3000.1,2998.7,0.1519]
[1765813129945,0.4732,3000.1,2999.0,3.334402]
[1765813130263,0.405504,3000.0,2998.2,0.04]
[1765813130450,0.552,2999.9,2999.0,3.33435753]
[1765813130651,0.552,2999.9,2998.4,3.33503849]
[1765813130852,0.552,2999.9,2998.3,0.36968772]
[1765813130853,0.877704,2999.8,2998.3,0.36968772]
[1765813131059,0.98597929,2999.6,2997.8,0.3215]
[1765813131267,6.6673334,2999.7,2997.2,6.76537554]
[1765813131268,0.405504,2999.2,2997.2,0.3215]
[1765813131538,0.552,2999.1,2998.2,6.67066497]
[1765813131744,0.552,2999.1,2998.3,0.3215]
[1765813132337,3.3336667,2999.7,2998.3,0.3215]
[1765813132338,0.1891,2999.8,2998.3,0.3215]
[1765813132558,0.001,3000.1,2999.0,0.1519]
[1765813132763,0.553,3000.1,2999.0,0.4734]
[1765813133352,0.553,3000.1,2999.1,10.32450089]
[1765813133664,0.553,3000.1,2999.2,1.04764009]
[1765813133868,0.553,3000.1,2999.2,1.36914009]
[1765813134039,0.553,3000.1,2999.2,1.04764009]
[1765813134241,0.553,3000.1,2999.3,0.3215]
[1765813134867,0.5522,3000.1,2999.3,0.3215]
[1765813135043,0.5522,3000.1,2999.4,0.19496154]
[1765813135243,0.5522,3000.1,2999.5,10.00166694]
[1765813135554,0.5522,3000.1,2999.5,13.65705592]
[1765813135756,0.0002,3000.1,2999.6,0.3215]
[1765813136338,0.0002,3000.1,2999.7,5.87790299]
[1765813136535,0.0002,3000.1,2999.8,1.25846312]
[1765813136739,0.0002,3000.1,2999.9,0.3215]
[1765813137351,0.0002,3000.1,3000.0,3.33333333]
[1765813137855,0.0002,3000.1,3000.0,3.65483333]
[1765813138478,0.001,3000.7,3000.4,3.031202]
[1765813138682,0.001,3000.9,3000.6,5.87790299]
[1765813138883,0.001,3000.9,3000.7,0.90097529]
[1765813139340,0.001,3000.9,3000.8,0.3205]
[1765813139703,0.001,3000.9,3000.8,3.65294468]
[1765813139847,0.001,3000.9,3000.8,3.69294468]
[1765813140048,0.001,3000.9,3000.8,4.39549563]
[1765813140573,0.001,3000.9,3000.8,4.97597092]
[1765813141344,0.001,3000.9,3000.8,4.39549563]
[1765813142492,0.001,3000.9,3000.8,3.37244468]
[1765813143180,0.001,3000.9,3000.8,0.04]
[1765813143374,0.001,3000.9,3000.3,0.1697]
[1765813143689,0.1945,3000.9,2999.4,0.51546154]
[1765813143849,0.001,3000.9,3000.3,3.33298863]
[1765813144051,0.552,3000.8,3000.3,3.33298863]
[1765813144248,0.552,3000.8,3000.2,3.33306735]
[1765813144597,0.552,3000.8,2999.0,0.1519]
[1765813144598,0.405504,3000.6,2999.0,0.1519]
[1765813145091,0.405504,3000.4,2999.4,3.33391674]
[1765813145256,0.405504,3000.4,2999.2,3.3342219]
[1765813145257,0.4644,3000.5,2999.0,3.48624099]
[1765813145448,0.58047529,3000.2,2998.4,0.3205]
[1765813145652,0.58047529,3000.2,2998.7,0.1519]
[1765813145859,0.4644,3000.1,2998.9,3.33448257]
[1765813146063,0.4644,3000.1,2998.7,0.1519]
[1765813146266,0.4644,3000.1,2999.0,3.33442257]
[1765813146467,0.552,3000.0,2999.0,7.00230964]
[1765813146691,3.33244468,3000.8,2999.1,0.35384333]
[1765813146990,0.552,3000.5,2999.1,0.3205]
[1765813147360,0.552,3000.5,2999.3,0.58047529]
[1765813147686,0.552,3000.5,2999.4,10.00200039]
[1765813147850,0.552,3000.5,2999.5,1.00020004]
[1765813148183,3.8848206,3000.5,2999.4,6.66800026]
[1765813148353,3.8848206,3000.5,2999.4,3.33400013]
[1765813148354,0.4644,3000.4,2999.4,3.33400013]
[1765813148553,0.4644,3000.4,2999.3,3.33408644]
[1765813148991,0.4644,3000.4,2998.7,0.4724]
[1765813148992,1.04487529,3000.4,2998.7,0.4724]
[1765813149193,0.1935,2999.4,2998.4,3.48697079]
[1765813149352,0.552,2999.3,2998.4,0.50059708]
[1765813149549,3.33422245,2999.2,2998.1,0.002]
[1765813149798,0.58047529,2999.1,2998.1,0.002]
[1765813150003,0.869904,2999.0,2998.1,0.002]
[1765813150519,0.405504,2998.8,2998.1,0.002]
[1765813150720,0.405504,2998.8,2997.4,3.33620659]
[1765813151028,0.552,2998.8,2997.7,3.33584536]
[1765813151224,0.552,2998.8,2998.0,3.33552122]
[1765813151430,6.6695568,2998.7,2997.5,0.33362066]
[1765813151631,0.552,2998.8,2998.0,0.002]
[1765813151937,11.02043427,2998.8,2998.0,0.002]
[1765813152100,0.552,2998.8,2998.0,0.002]
[1765813152701,0.552,2998.8,2998.1,0.2945]
[1765813153030,0.552,2999.6,2998.2,0.03335334]
[1765813153205,0.552,2999.6,2998.3,0.58047529]
[1765813153407,0.552,2999.6,2999.5,0.1259]
[1765813153625,0.001,2999.8,2999.5,6.79367796]
[1765813153826,0.001,2999.8,2999.4,3.33397283]
[1765813154055,0.001,2999.8,2999.5,6.66774168]
[1765813154264,0.001,2999.8,2999.3,3.33408603]
[1765813154551,0.001,2999.8,2999.1,0.0959]
[1765813154714,0.001,2999.8,2999.3,3.33409987]
[1765813155157,0.001,2999.8,2999.5,6.6677243]
[1765813155359,0.001,2999.8,2999.5,3.33383532]
[1765813155360,0.552,2999.7,2999.5,3.33383532]
[1765813155566,0.552,2999.7,2999.2,6.6684449]
[1765813155866,0.001,2999.8,2999.2,3.33422245]
[1765813156029,0.552,2999.7,2998.7,0.0959]
[1765813156349,4.291008,2999.2,2998.0,0.002]
[1765813156535,0.405504,2999.0,2998.0,0.002]
[1765813156737,0.551,2998.9,2998.0,0.002]
[1765813156936,1.0154,2998.9,2998.0,0.002]
[1765813157136,0.4644,2998.8,2998.0,0.002]
[1765813157557,6.6695568,2998.7,2998.0,0.002]
[1765813157922,0.1935,2998.5,2998.0,0.002]
[1765813158355,0.4644,2998.4,2998.0,0.002]
[1765813158563,0.551,2998.3,2998.0,0.002]
[1765813158869,0.551,2999.3,2998.1,0.2645]
[1765813159020,0.001,2999.8,2999.2,0.0959]
[1765813159473,0.001,2999.8,2999.3,0.2645]
[1765813159874,0.001,2999.8,2999.4,6.66800026]
[1765813160040,0.001,2999.8,2999.5,0.58047529]
[1765813160359,0.001,2999.8,2999.4,7.63534029]
[1765813160572,0.001,2999.8,2999.4,10.96934042]
[1765813160733,0.001,2999.8,2999.5,0.03333888]
[1765813160935,0.001,2999.8,2999.5,0.2645]
[1765813161160,0.001,2999.8,2999.6,1.09693404]
[1765813161572,0.001,2999.8,2999.6,1.36143404]
[1765813161884,0.001,2999.8,2999.6,3.33375653]
[1765813162199,0.001,2999.8,2999.7,0.2645]
[1765813163568,0.001,2999.8,2999.7,23.65476129]
[1765813163766,0.001,3000.7,3000.5,3.33277787]
[1765813163951,0.001,3001.3,3000.6,0.61380195]
[1765813164283,0.001,3001.3,3000.7,1.72776913]
[1765813164489,0.001,3001.3,3000.5,9.99833361]
[1765813164921,0.001,3001.3,3000.6,0.2615]
[1765813165341,0.001,3001.3,3000.9,0.58047529]
[1765813165625,0.001,3001.3,3000.9,0.2615]
[1765813165844,0.001,3001.3,3000.4,0.84197529]
[1765813166134,0.001,3001.3,3000.5,1.41739754]
[1765813166426,0.001,3001.3,3000.5,1.67889754]
[1765813167134,0.552,3001.3,3000.3,9.99900009]
[1765813167336,0.552,3001.3,3000.3,6.66600006]
[1765813167924,0.552,3001.3,3000.1,13.33288888]
[1765813168113,0.552,3001.3,3000.4,0.2615]
[1765813168405,0.001,3001.3,3000.4,0.2615]
[1765813168606,0.001,3001.3,3000.4,0.93262057]
[1765813169012,0.001,3001.3,3000.5,0.2615]
[1765813169515,0.001,3001.3,3000.6,0.405504]
[1765813169734,0.001,3001.3,3000.9,16.543441]
[1765813170036,0.001,3001.3,3001.1,3.33211155]
[1765813170329,0.001,3001.3,3001.2,0.66642282]
[1765813170637,0.001,3001.3,3001.2,0.2615]
[1765813170931,0.001,3001.3,3001.1,3.33211155]
[1765813171130,0.001,3001.3,3001.2,0.2615]
[1765813171627,0.001,3001.3,3001.1,3.33211155]
[1765813172028,0.001,3001.3,3000.9,6.66466726]
[1765813173036,0.001,3001.3,3000.9,6.92616726]
[1765813173204,0.001,3001.3,3000.9,6.66466726]
[1765813173544,0.001,3001.3,3001.0,0.4272]
[1765813173749,0.552,3001.3,2998.6,3.33477993]
[1765813173943,0.552,3001.3,2998.3,0.03987572]
[1765813173944,3.33211155,3001.1,2999.6,0.04]
[1765813174096,9.99633465,3001.1,2999.6,6.70755566]
[1765813174295,0.454,3001.0,2999.6,0.04]
[1765813174497,0.405504,2999.6,2997.5,0.2615]
[1765813174729,0.405504,2999.4,2997.7,3.33587709]
[1765813174938,0.551,2999.5,2997.9,3.33558267]
[1765813174939,0.405504,2999.2,2997.9,3.33558267]
[1765813175146,0.405504,2999.2,2997.4,3.33822297]
[1765813175344,0.405504,2999.0,2997.7,3.33588346]
[1765813175643,0.405504,2999.0,2997.4,0.002]
[1765813175808,0.405504,2998.8,2997.4,0.002]
[1765813176017,3.3347784,2998.7,2997.4,6.67444944]
[1765813176340,0.551,2998.6,2997.4,0.002]
[1765813176640,0.454,2998.6,2997.4,0.002]
[1765813176804,1.58547529,2998.6,2997.4,0.002]
[1765813177743,1.005,2998.5,2997.4,0.002]
[1765813178146,1.03447529,2998.4,2997.4,0.002]
[1765813178636,3.88607749,2998.5,2997.4,0.002]
[1765813178637,1.005,2998.3,2997.4,0.002]
[1765813178845,1.005,2998.3,2996.9,0.017667]
[1765813179135,0.454,2998.2,2997.3,0.002]
[1765813180302,1.03447529,2998.2,2997.3,0.002]
[1765813180899,0.454,2998.1,2997.3,0.002]
[1765813181189,0.03987572,2998.5,2997.3,0.66951173]
[1765813181395,0.551,2998.4,2997.3,0.66951173]
[1765813181794,0.454,2998.3,2997.3,0.66951173]
[1765813181963,0.454,2998.3,2997.3,0.002]
[1765813182562,0.551,2998.4,2997.3,0.002]
[1765813182862,3.37467652,2998.7,2997.3,0.002]
[1765813182863,0.03987572,2998.7,2997.4,0.2635]
[1765813183056,0.454,2999.2,2997.4,0.2635]
[1765813183258,0.551,2999.1,2997.4,0.2635]
[1765813184210,0.551,2999.1,2997.6,0.58047529]
[1765813184394,0.405504,2998.9,2997.5,6.67222684]
[1765813184598,0.405504,2998.7,2997.5,3.33611342]
[1765813184780,0.405504,2998.7,2997.4,6.67240959]
[1765813184986,0.454,2998.6,2997.4,6.67240959]
[1765813185188,0.551,2998.5,2997.4,6.67240959]
[1765813185386,0.7329,2998.5,2997.4,6.67240959]
[1765813185797,1.1869,2998.5,2997.4,6.67240959]
[1765813185994,1.1869,2998.5,2997.4,10.00863431]
[1765813186186,0.7329,2998.5,2997.4,11.00970507]
[1765813186381,0.454,2998.4,2997.3,3.33832086]
[1765813186582,0.405504,2998.3,2997.3,0.002]
[1765813186773,0.405504,2998.3,2997.4,3.33616738]
[1765813186994,0.454,2998.3,2997.4,3.33616738]
[1765813187196,0.454,2998.3,2997.4,6.6723921]
[1765813187393,0.454,2998.3,2997.4,6.6743921]
[1765813187588,0.454,2998.3,2997.4,3.33816738]
[1765813187995,0.454,2998.3,2997.4,3.33821942]
[1765813188591,3.33533453,2998.2,2997.4,0.002]
[1765813188906,6.67066906,2998.2,2997.4,0.002]
[1765813189110,0.454,2998.1,2997.4,0.002]
[1765813189508,0.1819,2997.5,2997.4,0.002]
[1765813189710,0.7329,2997.5,2997.4,0.002]
[1765813190012,0.1819,2997.8,2997.4,0.002]
[1765813190197,0.551,2997.7,2997.4,0.002]
[1765813190401,0.551,2997.6,2997.4,0.002]
[1765813190577,0.551,2997.5,2997.4,0.002]
[1765813190981,1.005,2997.5,2997.4,0.002]
[1765813192482,4.74661742,2997.5,2997.4,0.002]